fUSD/lending_fUSD_20250620
["ID","MTS","AMOUNT","RATE_DAILY","PERIOD"]
[366698997,1750415491796,-490.0,0.00026027,4]
[366698998,1750415491805,-490.0,0.00026027,4]
[366698999,1750415491816,-860.55,0.00026027,4]
[366699000,1750415491826,-490.0,0.00026027,4]
[366699001,1750415491836,-490.0,0.00026027,4]
[366699002,1750415491847,-490.0,0.00026027,4]
[366699003,1750415491856,-490.0,0.00026027,4]
[366699004,1750415491866,-445.52496795,0.00026027,4]
[366699005,1750415491875,-490.0,0.00026027,4]
[366699006,1750415491885,-490.0,0.00026027,4]
[366699007,1750415491895,-395.27597736,0.00026027,4]
[366699008,1750415491906,-490.0,0.00026027,4]
[366699009,1750415491916,-490.0,0.00026027,4]
[366699010,1750415491926,-490.0,0.00026027,4]
[366699011,1750415491936,-490.0,0.00026027,4]
[366699012,1750415491945,-490.0,0.00026027,4]
[366699013,1750415491955,-490.0,0.00026027,4]
[366699014,1750415491967,-490.0,0.00026027,4]
[366699015,1750415491976,-490.0,0.00026027,4]
[366699016,1750415491986,-490.0,0.00026027,4]
[366699017,1750415491995,-490.0,0.00026027,4]
[366699018,1750415492005,-490.0,0.00026027,4]
[366699019,1750415492015,-490.0,0.00026027,4]
[366699020,1750415492025,-490.0,0.00026027,4]
[366699021,1750415492036,-650.85,0.00026027,4]
[366699022,1750415492046,-490.0,0.00026027,4]
[366699023,1750415492056,-490.0,0.00026027,4]
[366699024,1750415492065,-418.47258035,0.00026027,4]
[366699025,1750415492075,-490.0,0.00026027,4]
[366699026,1750415492085,-490.0,0.00026027,4]
[366699027,1750415492095,-666.55,0.00026027,4]
[366699028,1750415492106,-490.0,0.00026027,4]
[366699029,1750415492116,-490.0,0.00026027,4]
[366699030,1750415492126,-490.0,0.00026027,4]
[366699031,1750415492137,-490.0,0.00026027,4]
[366699032,1750415492147,-490.0,0.00026027,4]
[366699033,1750415492157,-490.0,0.00026027,4]
[366699034,1750415492166,-490.0,0.00026027,4]
[366699035,1750415492176,-490.0,0.00026027,4]
[366699036,1750415492186,-584.193166,0.00026027,7]
[366699037,1750415492196,-490.0,0.00026027,4]
[366699038,1750415492207,-584.193166,0.00026027,7]
[366699039,1750415492218,-490.0,0.00026027,4]
[366699040,1750415492228,-490.0,0.00026027,4]
[366699041,1750415492237,-490.0,0.00026027,4]
[366699042,1750415492248,-490.0,0.00026027,4]
[366699043,1750415492257,-490.0,0.00026027,4]
[366699044,1750415492269,-490.0,0.00026027,4]
[366699045,1750415492279,-490.0,0.00026027,4]
[366699046,1750415492289,-497.02,0.00026027,4]
[366699047,1750415492299,-490.0,0.00026027,4]
[366699048,1750415492309,-490.0,0.00026027,4]
[366699049,1750415492319,-490.0,0.00026027,4]
[366699050,1750415492329,-561.45,0.00026027,4]
[366699051,1750415492340,-490.0,0.00026027,4]
[366699052,1750415492350,-490.0,0.00026027,4]
[366699053,1750415492360,-490.0,0.00026027,4]
[366699054,1750415492370,-490.0,0.00026027,4]
[366699055,1750415492380,-490.0,0.00026027,4]
[366699056,1750415492390,-490.0,0.00026027,4]
[366699057,1750415492399,-673.68,0.00026027,4]
[366699058,1750415492409,-490.0,0.00026027,4]
[366699059,1750415492419,-490.0,0.00026027,4]
[366699060,1750415492429,-453.74109319,0.00026027,4]
[366699061,1750415492439,-798.5,0.00026027,4]
[366699062,1750415492448,-490.0,0.00026027,4]
[366699063,1750415492458,-490.0,0.00026027,4]
[366699064,1750415492468,-490.0,0.00026027,4]
[366699065,1750415492478,-490.0,0.00026027,4]
[366699066,1750415492488,-490.0,0.00026027,4]
[366699067,1750415492498,-490.0,0.00026027,4]
[366699068,1750415492507,-814.97,0.00026027,4]
[366699069,1750415492516,-490.0,0.00026027,4]
[366699070,1750415492526,-2237.34,0.00026027,4]
[366699071,1750415492537,-201.015627,0.00026027,7]
[366699072,1750415492547,-490.0,0.00026027,4]
[366699073,1750415492557,-201.015627,0.00026027,7]
[366699074,1750415492568,-997.34,0.00026027,4]
[366699075,1750415492578,-792.52,0.00026027,4]
[366699076,1750415492588,-490.0,0.00026027,4]
[366699077,1750415492598,-490.0,0.00026027,4]
[366699078,1750415492607,-224.030406,0.00026027,7]
[366699079,1750415492618,-490.0,0.00026027,4]
[366699080,1750415492627,-749.65,0.00026027,4]
[366699081,1750415492637,-224.030406,0.00026027,7]
[366699082,1750415492647,-490.0,0.00026027,4]
[366699083,1750415492657,-490.0,0.00026027,4]
[366699084,1750415492666,-490.0,0.00026027,4]
[366699085,1750415492676,-490.0,0.00026027,4]
[366699086,1750415492686,-490.0,0.00026027,4]
[366699087,1750415492696,-870.19,0.00026027,4]
[366699088,1750415492706,-661.75,0.00026027,4]
[366699089,1750415492716,-490.0,0.00026027,4]
[366699090,1750415492728,-508.02,0.00026027,4]
[366699091,1750415492738,-511.81859292,0.00026027,4]
[366699092,1750415492748,-490.0,0.00026027,4]
[366699093,1750415492758,-490.0,0.00026027,4]
[366699094,1750415492768,-1294.95,0.00026027,4]
[366699095,1750415492778,-490.0,0.00026027,4]
[366699096,1750415492788,-490.0,0.00026027,4]
[366699097,1750415492798,-490.0,0.00026027,4]
[366699098,1750415492808,-490.0,0.00026027,4]
[366699099,1750415492818,-490.0,0.00026027,4]
[366699100,1750415492828,-860.83,0.00026027,4]
[366699101,1750415492838,-490.0,0.00026027,4]
[366699102,1750415492849,-490.0,0.00026027,4]
[366699103,1750415492858,-490.0,0.00026027,4]
[366699104,1750415492868,-490.0,0.00026027,4]
[366699105,1750415492878,-490.0,0.00026027,4]
[366699106,1750415492888,-686.43,0.00026027,4]
[366699107,1750415492897,-1554.68,0.00026027,4]
[366699108,1750415492908,-490.0,0.00026027,4]
[366699109,1750415492918,-490.0,0.00026027,4]
[366699110,1750415492927,-490.0,0.00026027,4]
[366699111,1750415492937,-490.0,0.00026027,4]
[366699112,1750415492948,-490.0,0.00026027,4]
[366699113,1750415492958,-490.0,0.00026027,4]
[366699114,1750415492968,-620.11,0.00026027,4]
[366699115,1750415492979,-490.0,0.00026027,4]
[366699116,1750415492989,-490.0,0.00026027,4]
[366699117,1750415492999,-1692.44,0.00026027,4]
[366699118,1750415493010,-490.0,0.00026027,4]
[366699119,1750415493020,-757.27,0.00026027,4]
[366699120,1750415493031,-591.54,0.00026027,4]
[366699121,1750415493042,-490.0,0.00026027,4]
[366699122,1750415493053,-490.0,0.00026027,4]
[366699123,1750415493064,-1478.21,0.00026027,4]
[366699124,1750415493075,-490.0,0.00026027,4]
[366699125,1750415493087,-1664.77,0.00026027,4]
[366699126,1750415493098,-490.0,0.00026027,4]
[366699127,1750415493111,-513.53,0.00026027,4]
[366699128,1750415493122,-155.529264,0.00026027,7]
[366699129,1750415493133,-1643.07,0.00026027,4]
[366699130,1750415493143,-2421.62,0.00026027,4]
[366699131,1750415493155,-155.529264,0.00026027,7]
[366699132,1750415493166,-151.0,0.00026027,7]
[366699133,1750415493176,-490.0,0.00026027,4]
[366699134,1750415493190,-151.0,0.00026027,7]
[366699135,1750415493201,-490.0,0.00026027,4]
[366699136,1750415493212,-490.0,0.00026027,4]
[366699137,1750415493223,-1002.75,0.00026027,4]
[366699138,1750415493234,-1171.85,0.00026027,4]
[366699139,1750415493244,-490.0,0.00026027,4]
[366699140,1750415493255,-490.0,0.00026027,4]
[366699141,1750415493265,-10000.0,0.00026027,7]
[366699142,1750415493277,-490.0,0.00026027,4]
[366699143,1750415493288,-490.0,0.00026027,4]
[366699144,1750415493298,-10000.0,0.00026027,7]
[366699145,1750415493308,-490.0,0.00026027,4]
[366699146,1750415493319,-490.0,0.00026027,4]
[366699147,1750415493329,-10000.0,0.00026027,7]
[366699148,1750415493340,-490.0,0.00026027,4]
[366699149,1750415493351,-513.94,0.00026027,4]
[366699150,1750415493362,-490.0,0.00026027,4]
[366699151,1750415493372,-1052.23,0.00026027,4]
[366699152,1750415493383,-10000.0,0.00026027,7]
[366699153,1750415493393,-1203.58,0.00026027,4]
[366699154,1750415493404,-1052.12,0.00026027,4]
[366699155,1750415493414,-490.0,0.00026027,4]
[366699156,1750415493424,-490.0,0.00026027,4]
[366699157,1750415493436,-1116.54,0.00026027,4]
[366699158,1750415493446,-490.0,0.00026027,4]
[366699159,1750415493456,-490.0,0.00026027,4]
[366699160,1750415493468,-593.05,0.00026027,4]
[366699161,1750415493478,-490.0,0.00026027,4]
[366699162,1750415493488,-713.86,0.00026027,4]
[366699163,1750415493499,-576.72,0.00026027,4]
[366699164,1750415493509,-1207.78,0.00026027,4]
[366699165,1750415493519,-490.0,0.00026027,4]
[366699166,1750415493529,-490.0,0.00026027,4]
[366699167,1750415493540,-885.97,0.00026027,4]
[366699168,1750415493551,-1286.94,0.00026027,4]
[366699169,1750415493561,-209.914755,0.00026027,7]
[366699170,1750415493571,-774.59,0.00026027,4]
[366699171,1750415493581,-663.64,0.00026027,4]
[366699172,1750415493592,-209.914755,0.00026027,7]
[366699173,1750415493602,-490.0,0.00026027,4]
[366699174,1750415493612,-490.0,0.00026027,4]
[366699175,1750415493622,-243.405194,0.00026027,7]
[366699176,1750415493632,-490.0,0.00026027,4]
[366699177,1750415493643,-689.38,0.00026027,4]
[366699178,1750415493653,-556.07,0.00026027,4]
[366699179,1750415493663,-629.04626717,0.00026027,4]
[366699180,1750415493673,-243.405194,0.00026027,7]
[366699181,1750415493683,-490.0,0.00026027,4]
[366699182,1750415493694,-490.0,0.00026027,4]
[366699183,1750415493705,-490.0,0.00026027,4]
[366699184,1750415493716,-929.62,0.00026027,4]
[366699185,1750415493726,-852.86,0.00026027,4]
[366699186,1750415493736,-172.67370369,0.00026027,4]
[366699187,1750415493747,-540.11,0.00026027,4]
[366699188,1750415493757,-490.0,0.00026027,4]
[366699189,1750415493767,-490.0,0.00026027,4]
[366699190,1750415493778,-490.0,0.00026027,4]
[366699191,1750415493788,-490.0,0.00026027,4]
[366699192,1750415493799,-549.5,0.00026027,4]
[366699193,1750415493809,-490.0,0.00026027,4]
[366699194,1750415493819,-548.37507745,0.00026027,4]
[366699195,1750415493829,-719.33,0.00026027,4]
[366699196,1750415493840,-490.0,0.00026027,4]
[366699197,1750415493850,-490.0,0.00026027,4]
[366699198,1750415493861,-212.479122,0.00026027,7]
[366699199,1750415493871,-490.0,0.00026027,4]
[366699200,1750415493881,-151.0,0.00026027,7]
[366699201,1750415493892,-992.43,0.00026027,4]
[366699202,1750415493903,-1178.9,0.00026027,4]
[366699203,1750415493913,-212.479122,0.00026027,7]
[366699204,1750415493923,-151.0,0.00026027,7]
[366699205,1750415493932,-490.0,0.00026027,4]
[366699206,1750415493943,-2120.13,0.00026027,4]
[366699207,1750415493953,-490.0,0.00026027,4]
[366699208,1750415493963,-490.0,0.00026027,4]
[366699209,1750415493974,-797.21,0.00026027,4]
[366699210,1750415493984,-490.0,0.00026027,4]
[366699211,1750415493996,-985.154821,0.00026027,7]
[366699212,1750415494008,-2831.45,0.00026027,4]
[366699213,1750415494334,-1657.46,0.00026027,4]
[366699214,1750415494357,-985.154821,0.00026027,7]
[366699215,1750415494368,-490.0,0.00026027,4]
[366699216,1750415494378,-1176.63,0.00026027,4]
[366699217,1750415494388,-835.13,0.00026027,4]
[366699218,1750415494398,-640.77,0.00026027,4]
[366699219,1750415494407,-490.0,0.00026027,4]
[366699220,1750415494417,-955.18,0.00026027,4]
[366699221,1750415494427,-759.69,0.00026027,4]
[366699222,1750415494438,-495.19,0.00026027,4]
[366699223,1750415494448,-1620.75,0.00026027,4]
[366699224,1750415494459,-730.634615,0.00026027,7]
[366699225,1750415494469,-151.0,0.00026027,7]
[366699226,1750415494479,-730.634615,0.00026027,7]
[366699227,1750415494489,-2608.35,0.00026027,4]
[366699228,1750415494499,-490.0,0.00026027,4]
[366699229,1750415494511,-1487.07,0.00026027,4]
[366699230,1750415494522,-490.0,0.00026027,4]
[366699231,1750415494532,-620.7,0.00026027,4]
[366699232,1750415494543,-2196.02,0.00026027,4]
[366699233,1750415494554,-490.0,0.00026027,4]
[366699234,1750415494564,-490.0,0.00026027,4]
[366699235,1750415494574,-2048.55,0.00026027,4]
[366699236,1750415494584,-490.0,0.00026027,4]
[366699237,1750415494594,-1452.89,0.00026027,4]
[366699238,1750415494604,-676.1,0.00026027,4]
[366699239,1750415494614,-490.0,0.00026027,4]
[366699240,1750415494625,-490.0,0.00026027,4]
[366699241,1750415494636,-3078.01,0.00026027,4]
[366699242,1750415494645,-729.0,0.00026027,4]
[366699243,1750415494655,-490.0,0.00026027,4]
[366699244,1750415494665,-646.89,0.00026027,4]
[366699245,1750415494675,-490.0,0.00026027,4]
[366699246,1750415494686,-692.86,0.00026027,4]
[366699247,1750415494695,-1111.1,0.00026027,4]
[366699248,1750415494706,-726.03,0.00026027,4]
[366699249,1750415494716,-490.0,0.00026027,4]
[366699250,1750415494726,-896.01,0.00026027,4]
[366699251,1750415494737,-522.54,0.00026027,4]
[366699252,1750415494747,-490.0,0.00026027,4]
[366699253,1750415494757,-817.65,0.00026027,4]
[366699254,1750415494767,-490.0,0.00026027,4]
[366699255,1750415494776,-1212.05,0.00026027,4]
[366699256,1750415494786,-490.0,0.00026027,4]
[366699257,1750415494796,-490.0,0.00026027,4]
[366699258,1750415494807,-1510.44,0.00026027,4]
[366699259,1750415494817,-490.0,0.00026027,4]
[366699260,1750415494827,-563.12,0.00026027,4]
[366699261,1750415494837,-17404.6,0.00026027,4]
[366699262,1750415494846,-490.0,0.00026027,4]
[366699263,1750415494856,-516.42,0.00026027,4]
[366699264,1750415494866,-1966.77,0.00026027,4]
[366699265,1750415494876,-499.64,0.00026027,4]
[366699266,1750415494887,-682.61,0.00026027,4]
[366699267,1750415494898,-496.54,0.00026027,4]
[366699268,1750415494907,-1292.76,0.00026027,4]
[366699269,1750415494918,-490.0,0.00026027,4]
[366699270,1750415494927,-532.96,0.00026027,4]
[366699271,1750415494938,-490.0,0.00026027,4]
[366699272,1750415494948,-490.0,0.00026027,4]
[366699273,1750415494958,-490.0,0.00026027,4]
[366699274,1750415494967,-3089.65,0.00026027,4]
[366699275,1750415494979,-490.0,0.00026027,4]
[366699276,1750415494990,-357.15705319,0.00026027,4]
[366699277,1750415495001,-490.0,0.00026027,4]
[366699278,1750415495011,-1110.49,0.00026027,4]
[366699279,1750415495020,-875.85,0.00026027,4]
[366699280,1750415495032,-490.0,0.00026027,4]
[366699281,1750415495042,-490.0,0.00026027,4]
[366699282,1750415495053,-808.72,0.00026027,4]
[366699283,1750415495063,-490.0,0.00026027,4]
[366699284,1750415495074,-1180.663306,0.00026027,7]
[366699285,1750415495084,-178.980671,0.00026027,7]
[366699286,1750415495094,-548.1,0.00026027,4]
[366699287,1750415495112,-178.980671,0.00026027,7]
[366699288,1750415495123,-490.0,0.00026027,4]
[366699289,1750415495133,-1116.64,0.00026027,4]
[366699290,1750415495145,-490.0,0.00026027,4]
[366699291,1750415495155,-741.55,0.00026027,4]
[366699292,1750415495165,-1180.663306,0.00026027,7]
[366699293,1750415495179,-490.0,0.00026027,4]
[366699294,1750415495190,-490.0,0.00026027,4]
[366699295,1750415495201,-900.32,0.00026027,4]
[366699296,1750415495211,-3388.66,0.00026027,4]
[366699297,1750415495221,-490.0,0.00026027,4]
[366699298,1750415495231,-490.0,0.00026027,4]
[366699299,1750415495242,-490.0,0.00026027,4]
[366699300,1750415495252,-1386.85,0.00026027,4]
[366699301,1750415495263,-2512.9,0.00026027,4]
[366699302,1750415495274,-490.0,0.00026027,4]
[366699303,1750415495284,-266.23213744,0.00026027,4]
[366699304,1750415495294,-490.0,0.00026027,4]
[366699305,1750415495305,-613.06,0.00026027,4]
[366699306,1750415495316,-7527.62,0.00026027,4]
[366699307,1750415495327,-7882.79,0.00026027,4]
[366699308,1750415495336,-1533.1,0.00026027,4]
[366699309,1750415495347,-490.0,0.00026027,4]
[366699310,1750415495357,-741.74,0.00026027,4]
[366699311,1750415495367,-557.61,0.00026027,4]
[366699312,1750415495377,-2444.05,0.00026027,4]
[366699313,1750415495387,-1074.56,0.00026027,4]
[366699314,1750415495397,-490.0,0.00026027,4]
[366699315,1750415495407,-716.85,0.00026027,4]
[366699316,1750415495417,-3776.02,0.00026027,4]
[366699317,1750415495428,-490.0,0.00026027,4]
[366699318,1750415495438,-490.0,0.00026027,4]
[366699319,1750415495448,-759.29,0.00026027,4]
[366699320,1750415495458,-7206.413036,0.00026027,7]
[366699321,1750415495469,-5317.42,0.00026027,4]
[366699322,1750415495479,-490.0,0.00026027,4]
[366699323,1750415495489,-7206.413036,0.00026027,7]
[366699324,1750415495499,-508.46,0.00026027,4]
[366699325,1750415495510,-490.0,0.00026027,4]
[366699326,1750415495520,-490.0,0.00026027,4]
[366699327,1750415495530,-490.0,0.00026027,4]
[366699328,1750415495540,-395.705153,0.00026027,7]
[366699329,1750415495550,-1702.18,0.00026027,4]
[366699330,1750415495560,-1502.12,0.00026027,4]
[366699331,1750415495570,-490.0,0.00026027,4]
[366699332,1750415495580,-395.705153,0.00026027,7]
[366699333,1750415495591,-9880.35,0.00026027,4]
[366699334,1750415495602,-670.44,0.00026027,4]
[366699335,1750415495613,-2012.16,0.00026027,4]
[366699336,1750415495623,-1936.5,0.00026027,4]
[366699337,1750415495635,-6404.69,0.00026027,4]
[366699338,1750415495645,-490.0,0.00026027,4]
[366699339,1750415495655,-490.0,0.00026027,4]
[366699340,1750415495666,-490.0,0.00026027,4]
[366699341,1750415495676,-490.0,0.00026027,4]
[366699342,1750415495686,-2380.6,0.00026027,4]
[366699343,1750415495696,-1141.27,0.00026027,4]
[366699344,1750415495707,-510.99,0.00026027,4]
[366699345,1750415495717,-691.59,0.00026027,4]
[366699346,1750415495727,-490.0,0.00026027,4]
[366699347,1750415495737,-490.0,0.00026027,4]
[366699348,1750415495747,-1844.2,0.00026027,4]
[366699349,1750415495758,-490.0,0.00026027,4]
[366699350,1750415495768,-490.0,0.00026027,4]
[366699351,1750415495778,-2450.17,0.00026027,4]
[366699352,1750415495788,-500.0,0.00026027,2]
[366699353,1750415495798,-500.0,0.00026027,2]
[366699354,1750415495808,-500.0,0.00026027,2]
[366699355,1750415495820,-500.0,0.00026027,2]
[366699356,1750415495831,-500.0,0.00026027,2]
[366699357,1750415495842,-500.0,0.00026027,2]
[366699358,1750415495852,-500.0,0.00026027,2]
[366699359,1750415495864,-500.0,0.00026027,2]
[366699360,1750415495874,-500.0,0.00026027,2]
[366699361,1750415495884,-337.27927933,0.00026027,2]
[366699362,1750415495894,-500.0,0.00026027,2]
[366699363,1750415495906,-500.0,0.00026027,2]
[366699364,1750415495916,-500.0,0.00026027,2]
[366699365,1750415495927,-500.0,0.00026027,2]
[366699366,1750415495939,-500.0,0.00026027,2]
[366699367,1750415495949,-500.0,0.00026027,2]
[366699368,1750415495958,-500.0,0.00026027,2]
[366699369,1750415495968,-500.0,0.00026027,2]
[366699370,1750415495978,-500.0,0.00026027,2]
[366699371,1750415495988,-490.0,0.00026027,4]
[366699372,1750415495998,-622.58,0.00026027,4]
[366699373,1750415496008,-490.0,0.00026027,4]
[366699374,1750415496019,-223.38682174,0.00026027,4]
[366699375,1750415496030,-490.0,0.00026027,4]
[366699376,1750415496041,-1419.42,0.00026027,4]
[366699377,1750415496051,-17540.73,0.00026027,4]
[366699378,1750415496061,-1227.01,0.00026027,4]
[366699379,1750415496071,-2496.698892,0.00026027,7]
[366699380,1750415496081,-490.0,0.00026027,4]
[366699381,1750415496090,-490.0,0.00026027,4]
[366699382,1750415496101,-490.0,0.00026027,4]
[366699383,1750415496111,-2496.698892,0.00026027,7]
[366699384,1750415496121,-500.0,0.00026027,2]
[366699385,1750415496130,-536.09549553,0.00026027,2]
[366699386,1750415496141,-500.0,0.00026027,2]
[366699387,1750415496151,-500.0,0.00026027,2]
[366699388,1750415496162,-500.0,0.00026027,2]
[366699389,1750415496172,-500.0,0.00026027,2]
[366699390,1750415496182,-500.0,0.00026027,2]
[366699391,1750415496192,-500.0,0.00026027,2]
[366699392,1750415496201,-490.0,0.00026027,4]
[366699393,1750415496212,-490.0,0.00026027,4]
[366699394,1750415496224,-5948.54,0.00026027,4]
[366699395,1750415496234,-242.497975,0.00026027,7]
[366699396,1750415496243,-957.68,0.00026027,4]
[366699397,1750415496253,-490.0,0.00026027,4]
[366699398,1750415496263,-490.0,0.00026027,4]
[366699399,1750415496272,-242.497975,0.00026027,7]
[366699400,1750415496282,-490.0,0.00026027,4]
[366699401,1750415496292,-490.0,0.00026027,4]
[366699402,1750415496302,-490.0,0.00026027,4]
[366699403,1750415496311,-5372.22,0.00026027,4]
[366699404,1750415496322,-490.0,0.00026027,4]
[366699405,1750415496333,-1499.27,0.00026027,4]
[366699406,1750415496344,-1525.88,0.00026027,4]
[366699407,1750415496353,-1594.4,0.00026027,4]
[366699408,1750415496363,-490.0,0.00026027,4]
[366699409,1750415496372,-490.0,0.00026027,4]
[366699410,1750415496382,-574.02,0.00026027,4]
[366699411,1750415496392,-18649.49,0.00026027,4]
[366699412,1750415496401,-490.0,0.00026027,4]
[366699413,1750415496410,-11431.71,0.00026027,4]
[366699414,1750415496421,-662.4,0.00026027,4]
[366699415,1750415496430,-490.0,0.00026027,4]
[366699416,1750415496439,-490.0,0.00026027,4]
[366699417,1750415496449,-2766.75,0.00026027,4]
[366699418,1750415496459,-1747.3,0.00026027,4]
[366699419,1750415496469,-490.0,0.00026027,4]
[366699420,1750415496478,-1639.8,0.00026027,4]
[366699421,1750415496488,-490.0,0.00026027,4]
[366699422,1750415496498,-521.31,0.00026027,4]
[366699423,1750415496508,-490.0,0.00026027,4]
[366699424,1750415496519,-641.47,0.00026027,4]
[366699425,1750415496528,-1452.7,0.00026027,4]
[366699426,1750415496537,-226.355101,0.00026027,7]
[366699427,1750415496547,-490.0,0.00026027,4]
[366699428,1750415496557,-490.0,0.00026027,4]
[366699429,1750415496566,-766.28,0.00026027,4]
[366699430,1750415496576,-1528.81,0.00026027,4]
[366699431,1750415496585,-226.355101,0.00026027,7]
[366699432,1750415496595,-2442.89,0.00026027,4]
[366699433,1750415496604,-490.0,0.00026027,4]
[366699434,1750415496614,-490.0,0.00026027,4]
[366699435,1750415496625,-490.0,0.00026027,4]
[366699436,1750415496634,-974.85,0.00026027,4]
[366699437,1750415496644,-525.8,0.00026027,4]
[366699438,1750415496653,-655.26,0.00026027,4]
[366699439,1750415496663,-490.0,0.00026027,4]
[366699440,1750415496673,-490.0,0.00026027,4]
[366699441,1750415496684,-490.0,0.00026027,4]
[366699442,1750415496696,-168.834443,0.00026027,7]
[366699443,1750415496708,-6155.02,0.00026027,4]
[366699444,1750415496719,-168.834443,0.00026027,7]
[366699445,1750415496731,-490.0,0.00026027,4]
[366699446,1750415496742,-1546.64,0.00026027,4]
[366699447,1750415496753,-490.0,0.00026027,4]
[366699448,1750415496763,-952.09,0.00026027,4]
[366699449,1750415496772,-2556.54,0.00026027,4]
[366699450,1750415496782,-490.0,0.00026027,4]
[366699451,1750415496894,-490.0,0.00026027,4]
[366699452,1750415496904,-1078.67,0.00026027,4]
[366699453,1750415496913,-1698.38,0.00026027,4]
[366699454,1750415496922,-399.114272,0.00026027,7]
[366699455,1750415496932,-7770.54,0.00026027,4]
[366699456,1750415496941,-490.0,0.00026027,4]
[366699457,1750415496950,-490.0,0.00026027,4]
[366699458,1750415496960,-490.0,0.00026027,4]
[366699459,1750415496969,-399.114272,0.00026027,7]
[366699460,1750415496978,-713.18,0.00026027,4]
[366699461,1750415496988,-490.0,0.00026027,4]
[366699462,1750415496999,-490.0,0.00026027,4]
[366699463,1750415497008,-565.57,0.00026027,4]
[366699464,1750415497017,-1078.51,0.00026027,4]
[366699465,1750415497028,-490.0,0.00026027,4]
[366699466,1750415497038,-821.954408,0.00026027,7]
[366699467,1750415497048,-490.0,0.00026027,4]
[366699468,1750415497059,-490.0,0.00026027,4]
[366699469,1750415497068,-511.43,0.00026027,4]
[366699470,1750415497077,-821.954408,0.00026027,7]
[366699471,1750415497086,-153.61,0.00026027,2]
[366699472,1750415497095,-500.0,0.00026036,4]
[366699473,1750415497108,-500.0,0.00026036,4]
[366699474,1750415497118,-500.0,0.00026036,4]
[366699475,1750415497128,-500.0,0.00026036,4]
[366699476,1750415497137,-151.0,0.00026037,7]
[366699477,1750415497147,-151.0,0.00026037,7]
[366699478,1750415497156,-490.0,0.00026037,4]
[366699479,1750415497166,-502.3557357,0.00026037,4]
[366699480,1750415497176,-490.0,0.00026037,4]
[366699481,1750415497187,-420.090882,0.00026037,7]
[366699482,1750415497197,-490.0,0.00026037,4]
[366699483,1750415497208,-420.090882,0.00026037,7]
[366699484,1750415497217,-490.0,0.00026037,4]
[366699485,1750415497226,-490.0,0.00026037,4]
[366699486,1750415497236,-490.0,0.00026037,4]
[366699487,1750415497245,-464.06125962,0.00026037,4]
[366699488,1750415497257,-490.0,0.00026037,4]
[366699489,1750415497266,-225.089144,0.00026037,7]
[366699490,1750415497277,-490.0,0.00026037,4]
[366699491,1750415497288,-225.089144,0.00026037,7]
[366699492,1750415497298,-490.0,0.00026037,4]
[366699493,1750415497308,-151.0,0.00026037,7]
[366699494,1750415497325,-491.14275691,0.00026037,4]
[366699495,1750415497337,-151.0,0.00026037,7]
[366699496,1750415497347,-490.0,0.00026037,4]